bitfinex-derivatives/quotes_SOLF0:USTF0_20250630
["timestamp","ask_amount","ask_price","bid_price","bid_amount"]
[1751268433543,3.09944567,150.67,150.66,5.52819586]
[1751268433746,3.09944567,150.67,150.6,41.18452131]
[1751268433943,3.09944567,150.64,150.62,5.31]
[1751268435247,3.09944567,150.64,150.6,35.0]
[1751268435447,3.09944567,150.62,150.6,35.0]
[1751268436146,3.09944567,150.62,150.6,40.3106]
[1751268436347,3.09944567,150.64,150.6,41.18452131]
[1751268437448,3.09944567,150.64,150.61,5.31]
[1751268437946,3.09944567,150.64,150.62,5.3099]
[1751268441945,5.309,150.65,150.62,5.3099]
[1751268442145,8.40844567,150.65,150.62,5.3099]
[1751268445651,8.40844567,150.65,150.63,5.53339235]
[1751268445854,1.98565937,150.64,150.62,5.3099]
[1751268446050,1.98565937,150.63,150.62,5.3099]
[1751268446251,1.98565937,150.63,150.62,10.84329235]
[1751268447550,1.98565937,150.64,150.62,10.84329235]
[1751268447754,4.77110421,150.71,150.63,7.51905172]
[1751268447950,1.98565937,150.69,150.65,1.98565937]
[1751268448151,1.98565937,150.69,150.66,5.53339235]
[1751268448351,7.29345937,150.69,150.67,5.53339235]
[1751268448546,7.29345937,150.69,150.66,5.3086]
[1751268448746,7.29345937,150.69,150.67,5.52721556]
[1751268448951,7.29345937,150.69,150.65,7.29445937]
[1751268449146,7.29345937,150.69,150.66,5.52721556]
[1751268449350,7.29345937,150.69,150.67,5.52721556]
[1751268449548,5.3079,150.68,150.65,7.29445937]
[1751268449756,5.3079,150.68,150.66,5.52710604]
[1751268450053,5.3079,150.68,150.67,5.52710604]
[1751268452456,5.3079,150.68,150.64,42.508]
[1751268452650,5.3079,150.68,150.65,5.50868834]
[1751268452852,5.3079,150.68,150.66,5.50868834]
[1751268453055,5.3079,150.68,150.65,5.3089]
[1751268453255,5.3079,150.68,150.66,5.50890579]
[1751268453446,5.3079,150.68,150.65,5.3089]
[1751268453654,5.3079,150.68,150.66,5.50895624]
[1751268453852,5.3079,150.68,150.65,5.3089]
[1751268454052,5.3079,150.68,150.66,5.50895624]
[1751268454257,5.3079,150.68,150.65,5.3089]
[1751268454557,5.3079,150.68,150.66,5.50901782]
[1751268454757,5.3079,150.68,150.65,5.3089]
[1751268454956,5.3079,150.68,150.66,5.50894657]
[1751268455157,5.3079,150.68,150.65,5.3089]
[1751268455356,5.3079,150.68,150.66,5.5088097]
[1751268455556,5.3079,150.68,150.65,5.3089]
[1751268455756,5.3079,150.68,150.66,5.50903589]
[1751268455959,5.3079,150.68,150.65,5.3089]
[1751268456153,5.3079,150.68,150.66,5.50903589]
[1751268456354,5.3079,150.68,150.65,5.3089]
[1751268456656,5.3079,150.68,150.66,5.51372178]
[1751268456857,5.3079,150.68,150.65,5.3089]
[1751268457056,5.3079,150.68,150.66,5.51372178]
[1751268457257,5.3079,150.68,150.65,5.3089]
[1751268457449,5.3079,150.68,150.66,5.51385454]
[1751268457653,5.3079,150.68,150.65,5.3089]
[1751268457859,5.3079,150.68,150.66,5.51385454]
[1751268458155,5.3079,150.68,150.65,5.3089]
[1751268458349,5.3079,150.68,150.66,5.51385454]
[1751268458547,5.3079,150.68,150.65,5.3089]
[1751268458747,5.3079,150.68,150.66,5.51401126]
[1751268458959,5.3079,150.68,150.65,5.3089]
[1751268459158,5.3079,150.68,150.66,5.51401126]
[1751268459351,5.3079,150.68,150.65,5.3089]
[1751268459552,5.3079,150.68,150.66,5.51418978]
[1751268459753,5.3079,150.68,150.65,5.3089]
[1751268459953,5.3079,150.68,150.66,5.51418978]
[1751268460154,5.3077,150.69,150.65,5.3089]
[1751268460354,5.3077,150.69,150.66,5.51413727]
[1751268460554,5.3077,150.69,150.65,5.3089]
[1751268460757,5.3077,150.69,150.66,5.51439225]
[1751268460955,5.3077,150.69,150.65,5.3089]
[1751268461156,5.3077,150.69,150.66,5.51439225]
[1751268461356,5.3077,150.69,150.65,5.3089]
[1751268461557,5.3077,150.69,150.66,5.51461927]
[1751268461757,5.3077,150.69,150.65,5.3089]
[1751268461958,5.3077,150.69,150.66,5.51461927]
[1751268462157,3.10020777,150.7,150.65,5.3089]
[1751268462158,5.3079,150.68,150.65,5.3089]
[1751268462364,5.3079,150.68,150.66,5.51461043]
[1751268462666,5.3079,150.68,150.65,5.3089]
[1751268462862,5.3079,150.68,150.66,5.51029578]
[1751268463067,5.3079,150.68,150.65,5.3089]
[1751268463268,5.3079,150.68,150.66,5.51029578]
[1751268463566,5.3079,150.68,150.65,5.3089]
[1751268463770,5.3079,150.68,150.66,5.51082556]
[1751268464071,5.3079,150.68,150.65,5.3089]
[1751268464366,5.3079,150.68,150.66,5.51082556]
[1751268464568,5.3079,150.68,150.65,5.3089]
[1751268464867,5.3079,150.68,150.66,5.51115275]
[1751268465056,5.3079,150.68,150.65,5.3089]
[1751268465262,5.3079,150.68,150.66,5.51115275]
[1751268465563,4.77110421,150.71,150.64,39.5]
[1751268465763,3.10020777,150.7,150.65,5.51142466]
[1751268465964,3.10020777,150.7,150.66,5.51142466]
[1751268466164,5.3076,150.69,150.67,5.51142466]
[1751268466365,5.3076,150.69,150.66,5.3084]
[1751268466664,5.3076,150.69,150.67,5.5110881]
[1751268466865,5.3076,150.69,150.66,5.3084]
[1751268467064,5.3076,150.69,150.67,5.5110881]
[1751268467363,5.3076,150.69,150.66,5.3084]
[1751268467565,5.3076,150.69,150.67,5.51574878]
[1751268467767,5.3076,150.69,150.66,5.3084]
[1751268468066,5.3076,150.69,150.67,5.51574878]
[1751268468266,5.3076,150.69,150.66,5.3084]
[1751268468466,5.3076,150.69,150.67,5.51620672]
[1751268468669,5.3076,150.69,150.66,5.3084]
[1751268468868,5.3076,150.69,150.67,5.51620672]
[1751268469069,5.3076,150.69,150.66,5.3084]
[1751268469270,5.3076,150.69,150.67,5.51620667]
[1751268469470,5.3076,150.69,150.66,5.3084]
[1751268469671,5.3076,150.69,150.67,5.51671083]
[1751268469871,5.3076,150.69,150.66,5.3084]
[1751268470170,5.3076,150.69,150.67,5.51671083]
[1751268470370,5.3076,150.69,150.66,5.3084]
[1751268470572,5.3076,150.69,150.67,5.51723801]
[1751268470772,5.3076,150.69,150.66,5.3084]
[1751268470969,5.3076,150.69,150.67,5.51723801]
[1751268471170,5.3076,150.69,150.66,5.3084]
[1751268471369,5.3076,150.69,150.67,5.51723801]
[1751268471571,5.3076,150.69,150.66,5.3084]
[1751268471871,5.3076,150.69,150.67,5.51778989]
[1751268472071,5.3076,150.69,150.66,5.3084]
[1751268472270,5.3076,150.69,150.67,5.51779077]
[1751268472574,5.3076,150.69,150.66,5.3084]
[1751268472770,5.3076,150.69,150.67,5.51836842]
[1751268472972,1.98451287,150.68,150.66,5.3084]
[1751268473173,1.98451287,150.67,150.66,5.3084]
[1751268473376,1.98451287,150.67,150.66,10.82548689]
[1751268474076,1.98451287,150.67,150.66,5.51708689]
[1751268474771,7.29281287,150.67,150.66,5.51708689]
[1751268477781,5.309,150.65,150.62,5.3099]
[1751268478077,1.98451287,150.63,150.62,5.3099]
[1751268478279,1.98451287,150.63,150.62,10.82718596]
[1751268479080,1.98451287,150.64,150.62,10.82718596]
[1751268479280,1.98451287,150.64,150.63,5.51728596]
[1751268484680,7.29381287,150.64,150.63,5.51728596]
[1751268485485,1.98451287,150.64,150.63,5.51728596]
[1751268486184,7.29381287,150.64,150.63,5.51728596]
[1751268498099,1.98451287,150.64,150.63,5.51728596]
[1751268498893,7.29381287,150.64,150.63,5.51728596]
[1751268502901,1.98451287,150.64,150.63,5.51728596]
[1751268504399,1.98451287,150.65,150.63,10.82698596]
[1751268504598,1.98451287,150.65,150.63,5.3097]
[1751268505003,1.98451287,150.65,150.61,36.76451287]
[1751268505004,1.98451287,150.64,150.61,34.78]
[1751268505302,34.78,150.68,150.62,5.53772585]
[1751268505504,34.78,150.68,150.59,36.9297]
[1751268505505,165.66,150.68,150.59,42.2406]
[1751268505695,165.66,150.68,150.6,5.53833947]
[1751268505896,165.66,150.68,150.61,5.53833947]
[1751268506097,5.3106,150.61,150.58,5.3114]
[1751268506293,5.3106,150.61,150.59,5.53855728]
[1751268506497,1.98451287,150.6,150.58,5.3114]
[1751268506701,1.98451287,150.59,150.58,5.3114]
[1751268506901,1.98451287,150.59,150.58,10.849239]
[1751268507704,1.98451287,150.6,150.58,10.849239]
[1751268507900,1.98451287,150.6,150.59,5.537839]
[1751268508604,1.98451287,150.6,150.59,10.848939]
[1751268509509,1.98451287,150.61,150.59,5.537839]
[1751268509803,1.98451287,150.61,150.6,5.537839]
[1751268510003,5.3101,150.62,150.6,5.537839]
[1751268510204,1.98451287,150.61,150.59,5.3109]
[1751268510399,1.98451287,150.61,150.6,5.53570064]
[1751268510600,5.3099,150.63,150.6,5.53570064]
[1751268510794,1.98451287,150.61,150.59,5.311]
[1751268510993,1.98451287,150.61,150.6,5.53574827]
[1751268511705,7.29491287,150.61,150.6,5.53574827]
[1751268521005,5.3113,150.59,150.56,46.15652131]
[1751268521206,1.98451287,150.58,150.57,5.55586497]
[1751268522214,7.29591287,150.58,150.57,5.55586497]
[1751268527315,5.3125,150.55,150.53,50.85682131]
[1751268527517,1.98451287,150.54,150.53,44.6723]
[1751268528017,1.98451287,150.54,150.53,39.3593]
[1751268528206,1.98451287,150.54,150.53,34.66]
[1751268528407,1.98451287,150.54,150.52,5.3134]
[1751268529419,1.98451287,150.55,150.53,5.3132]
[1751268530724,1.98451287,150.56,150.54,5.3128]
[1751268530917,1.98451287,150.57,150.53,1.98451287]
[1751268532723,1.98451287,150.57,150.52,8.16903418]
[1751268532915,1.98451287,150.57,150.53,1.98451287]
[1751268533525,1.98451287,150.57,150.55,5.3124]
[1751268535322,1.98451287,150.56,150.55,5.3124]
[1751268535533,1.98451287,150.56,150.54,5.3127]
[1751268535829,1.98451287,150.56,150.53,1.98451287]
[1751268536028,1.98451287,150.56,150.54,5.3125]
[1751268537224,1.98451287,150.56,150.55,5.3125]
[1751268537430,1.98451287,150.57,150.55,5.3125]
[1751268542839,1.98451287,150.56,150.54,5.3127]
[1751268543037,1.98451287,150.56,150.55,5.52264047]
[1751268550543,1.98451287,150.56,150.55,10.83514047]
[1751268551444,1.98451287,150.56,150.55,5.52264047]
[1751268551839,1.98451287,150.58,150.56,5.312]
[1751268552044,1.98451287,150.58,150.57,5.54368184]
[1751268557051,7.29591287,150.58,150.57,5.54368184]
[1751268568267,1.98451287,150.58,150.57,5.54368184]
[1751268569476,7.29591287,150.58,150.57,5.54368184]
[1751268572575,36.7604,150.63,150.57,5.54368184]
[1751268572576,1.98451287,150.59,150.57,5.54368184]
[1751268572779,34.54,150.63,150.58,5.54368184]
[1751268572974,34.54,150.63,150.59,5.54368184]
[1751268573176,5.3111,150.59,150.56,11.49652131]
[1751268573377,5.3111,150.59,150.57,5.55409055]
[1751268573579,5.3111,150.59,150.58,5.55409055]
[1751268574284,7.29561287,150.59,150.58,5.55409055]
[1751268574581,1.98451287,150.59,150.58,5.55409055]
[1751268576584,7.29561287,150.59,150.58,5.55409055]
[1751268593782,1.98451287,150.59,150.58,5.55409055]
[1751268593985,1.98734043,150.59,150.58,5.55409055]
[1751268597290,1.98725978,150.59,150.58,5.55409055]
[1751268600189,7.29835978,150.59,150.58,5.55409055]
[1751268600390,1.98725978,150.59,150.58,5.55409055]
[1751268602698,7.29835978,150.59,150.58,5.55409055]
[1751268607397,5.3111,150.59,150.58,5.55409055]
[1751268607698,1.98725978,150.59,150.52,6.18452131]
[1751268607891,1.98725978,150.53,150.51,40.42452131]
[1751268608096,34.24,150.58,150.5,6.18452131]
[1751268608097,1.98725978,150.52,150.5,6.18452131]
[1751268609499,7.30105978,150.52,150.5,6.18452131]
[1751268610099,1.98725978,150.51,150.5,6.18452131]
[1751268611199,1.98725978,150.51,150.49,6.18452131]
[1751268611591,1.98725978,150.5,150.49,6.18452131]
[1751268611796,1.98725978,150.5,150.48,47.11912131]
[1751268611995,1.98725978,150.49,150.48,40.9346]
[1751268613504,1.98725978,150.49,150.48,6.6946]
[1751268614394,34.24,150.54,150.48,6.6946]
[1751268614597,1.98725978,150.49,150.48,6.6946]
[1751268615694,34.24,150.54,150.48,6.6946]
[1751268615899,1.98725978,150.51,150.48,6.6946]
[1751268616492,1.98725978,150.51,150.49,5.3146]
[1751268616696,39.553,150.54,150.49,1.98725978]
[1751268616697,1.98725978,150.53,150.49,1.98725978]
[1751268617095,34.24,150.57,150.49,36.22725978]
[1751268617301,1.98725978,150.53,150.5,5.314]
[1751268619001,1.98725978,150.54,150.5,1.98725978]
[1751268619204,1.98725978,150.56,150.52,1.98725978]
[1751268619501,1.98725978,150.56,150.53,2.2759]
[1751268619803,1.98725978,150.56,150.54,5.51093197]
[1751268620005,1.98725978,150.56,150.53,2.2759]
[1751268620199,1.98725978,150.55,150.54,5.51100431]
[1751268620798,1.98725978,150.55,150.53,2.2759]
[1751268621104,1.98725978,150.54,150.53,2.2759]
[1751268632211,5.3123,150.56,150.53,2.2759]
[1751268632416,1.98725978,150.54,150.53,2.2759]
[1751268635922,5.3123,150.56,150.53,2.2759]
[1751268636116,1.98725978,150.54,150.53,2.2759]
[1751268636922,5.3123,150.56,150.53,2.2759]
[1751268637120,1.98725978,150.57,150.53,4.26315978]
[1751268637519,1.98725978,150.57,150.55,5.3123]
[1751268640422,1.98725978,150.56,150.54,5.3127]
[1751268640726,1.98725978,150.55,150.53,2.2759]
[1751268641026,1.98725978,150.54,150.53,2.2759]
[1751268641228,1.98725978,150.54,150.52,5.3133]
[1751268641828,3.10669788,150.55,150.52,5.3133]
[1751268643237,8.41919788,150.55,150.51,5.3138]
[1751268643937,3.10669788,150.55,150.51,5.3138]
[1751268650038,3.10669788,150.55,150.5,6.18452131]
[1751268651239,3.10669788,150.53,150.49,8.34512131]
[1751268651739,3.10669788,150.53,150.5,5.3142]
[1751268653641,8.41999788,150.53,150.49,7.4751]
[1751268656745,3.10669788,150.53,150.5,5.3142]
[1751268657241,5.313,150.54,150.49,2.1606]
[1751268657242,34.1,150.56,150.49,2.1606]
[1751268657445,3.10669788,150.54,150.49,2.1606]
[1751268657644,34.1,150.56,150.49,2.1606]
[1751268657946,3.10669788,150.55,150.52,5.3135]
[1751268658745,3.10678173,150.55,150.52,5.3135]
[1751268661147,3.10678173,150.55,150.53,5.3131]
[1751268663148,3.10678173,150.55,150.52,5.3134]
[1751268663348,3.10678173,150.55,150.53,5.5610835]
[1751268663546,3.10678173,150.55,150.49,8.34512131]
[1751268663742,1.98827178,150.54,150.51,5.3138]
[1751268663937,1.98827178,150.54,150.52,5.5610835]
[1751268664142,1.98827178,150.54,150.53,5.5610835]
[1751268669354,7.30117178,150.54,150.53,5.5610835]
[1751268669552,7.30117178,150.54,150.5,5.3142]
[1751268669741,7.30117178,150.54,150.51,5.56092616]
[1751268669742,1.98827178,150.53,150.51,5.56092616]
[1751268669947,1.98827178,150.52,150.49,7.4751]
[1751268670155,1.98827178,150.51,150.5,5.56099721]
[1751268672453,7.30227178,150.51,150.5,5.56099721]
[1751268672856,1.98827178,150.51,150.5,5.56099721]
[1751268673156,1.98938491,150.51,150.5,5.56099721]
[1751268674860,1.98938491,150.51,150.5,10.87529721]
[1751268675256,5.313,150.54,150.5,10.87529721]
[1751268675454,1.98938491,150.51,150.49,7.4751]
[1751268675760,1.98938491,150.5,150.49,7.4751]
[1751268676057,1.98938491,150.5,150.49,13.03373732]
[1751268681862,1.98938491,150.5,150.49,7.71923732]
[1751268682264,7.30368491,150.5,150.49,5.55863732]
[1751268682465,7.30368491,150.5,150.45,42.16950469]
[1751268682466,7.30368491,150.5,150.46,5.3155]
[1751268682655,1.98938491,150.47,150.46,5.3155]
[1751268682859,1.98938491,150.47,150.46,10.89540891]
[1751268683761,34.0,150.52,150.46,7.56929382]
[1751268683967,1.98938491,150.53,150.49,1.98938491]
[1751268684165,1.98938491,150.54,150.5,2.3419]
[1751268684465,1.98938491,150.53,150.5,2.3419]
[1751268684660,1.98938491,150.53,150.51,5.57828373]
[1751268684861,1.98938491,150.53,150.5,2.3419]
[1751268685064,1.98938491,150.53,150.52,5.3136]
[1751268685365,1.98938491,150.53,150.52,10.8918832]
[1751268685765,1.98938491,150.54,150.53,5.3132]
[1751268686366,1.98938491,150.54,150.51,2.3381]
[1751268686562,1.98938491,150.52,150.51,2.3381]
[1751268686766,1.98938491,150.52,150.51,7.91798897]
[1751268686967,1.98938491,150.52,150.51,13.23198897]
[1751268687866,3.10685657,150.55,150.52,5.3134]
[1751268688061,3.10685657,150.55,150.53,5.57988897]
[1751268688261,3.10685657,150.55,150.52,5.3134]
[1751268688461,3.10685657,150.55,150.53,5.57577146]
[1751268688667,3.10685657,150.55,150.52,5.3134]
[1751268688968,3.10685657,150.55,150.53,5.57577146]
[1751268689168,3.10685657,150.55,150.53,5.3131]
[1751268689669,3.10685657,150.55,150.51,2.3381]
[1751268689862,8.41945657,150.55,150.52,10.88959689]
[1751268690168,8.41945657,150.55,150.53,5.57619689]
[1751268690367,8.41945657,150.55,150.52,5.3134]
[1751268690568,8.41945657,150.55,150.53,5.57648433]
[1751268690868,8.41945657,150.55,150.52,5.3134]
[1751268691070,8.41945657,150.55,150.53,5.57536057]
[1751268691269,8.41975657,150.54,150.51,2.3381]
[1751268691470,8.41975657,150.54,150.52,5.57669534]
[1751268691666,8.41975657,150.54,150.53,5.57669534]
[1751268696476,5.3126,150.55,150.53,5.57669534]
[1751268696676,3.10685657,150.54,150.52,5.3136]
[1751268702183,3.10685657,150.54,150.53,5.57476307]
[1751268702386,8.41975657,150.54,150.53,5.57476307]
[1751268703383,8.41975657,150.54,150.51,5.3138]
[1751268703584,8.41975657,150.54,150.52,5.57503412]
[1751268703779,8.41975657,150.54,150.51,5.3138]
[1751268703975,8.41975657,150.54,150.52,5.57503412]
[1751268704179,8.41975657,150.54,150.51,5.3138]
[1751268704375,8.41975657,150.54,150.52,5.57509514]
[1751268704579,8.41975657,150.54,150.51,5.3138]
[1751268704777,8.41975657,150.54,150.52,5.57509737]
[1751268704982,8.41975657,150.54,150.51,5.3138]
[1751268705186,8.41975657,150.54,150.52,5.57509737]
[1751268705485,8.41975657,150.54,150.51,5.3138]
[1751268705685,8.41975657,150.54,150.5,2.3419]
[1751268705686,3.10728767,150.54,150.52,5.57524962]
[1751268705885,3.10728767,150.54,150.53,5.57524962]
[1751268706079,37.10728767,150.56,150.53,5.57524962]
[1751268706275,42.41968767,150.56,150.53,5.313]
[1751268709792,1.98835051,150.54,150.53,5.313]
[1751268709991,1.98835051,150.54,150.53,10.88615806]
[1751268712092,1.98835051,150.54,150.53,5.57315806]
[1751268715093,7.30125051,150.54,150.53,5.57315806]
[1751268715292,1.98835051,150.54,150.49,40.21210198]
[1751268715594,1.98835051,150.5,150.47,4.5309]
[1751268715896,1.98835051,150.48,150.47,9.846]
[1751268716289,1.98987244,150.48,150.47,4.5309]
[1751268717099,1.98987244,150.48,150.46,8.52550198]
[1751268717301,1.98987244,150.47,150.46,2.3134]
[1751268717591,1.98987244,150.47,150.46,7.6291]
[1751268717795,3.10983296,150.47,150.46,7.6291]
[1751268720402,3.10983296,150.47,150.46,5.3157]
[1751268720901,3.10983296,150.49,150.48,5.315]
[1751268721099,3.10983296,150.53,150.47,33.78]
[1751268721400,3.10983296,150.53,150.5,5.3141]
[1751268723799,8.42313296,150.53,150.5,5.3141]
[1751268723997,3.10983296,150.51,150.5,5.3141]
[1751268724603,3.10983296,150.51,150.49,5.3146]
[1751268725102,3.10983296,150.52,150.49,5.3146]
[1751268725501,3.10983296,150.52,150.48,2.3259]
[1751268725502,3.10983296,150.52,150.5,5.3142]
[1751268726105,3.10983296,150.52,150.51,5.314]
[1751268727404,3.10983296,150.52,150.51,10.85925852]
[1751268728808,3.10983296,150.54,150.52,5.3136]
[1751268729008,8.42273296,150.54,150.48,8.53800198]
[1751268729199,8.42273296,150.54,150.49,5.54672562]
[1751268729404,8.42273296,150.54,150.51,5.3137]
[1751268730714,3.10983296,150.54,150.51,5.3137]
[1751268732205,3.10983296,150.54,150.52,5.53838624]
[1751268732511,3.10983296,150.54,150.48,8.53800198]
[1751268732810,3.10983296,150.55,150.49,11.75046532]
[1751268733002,3.10983296,150.55,150.53,5.3131]
[1751268735117,3.10983296,150.55,150.52,5.3135]
[1751268735318,3.10983296,150.55,150.53,5.53610361]
[1751268735617,8.42243296,150.55,150.52,5.3135]
[1751268735815,8.42243296,150.55,150.53,5.53640266]
[1751268736016,8.42243296,150.55,150.52,5.3135]
[1751268736213,8.42243296,150.55,150.53,5.53640266]
[1751268736416,8.42243296,150.55,150.52,5.3135]
[1751268736615,8.42243296,150.55,150.53,5.53627731]
[1751268736917,8.42243296,150.55,150.52,5.3135]
[1751268737120,8.42243296,150.55,150.53,5.53627731]
[1751268737318,8.42243296,150.55,150.52,5.3135]
[1751268737517,8.42243296,150.55,150.53,5.52712305]
[1751268737714,8.42243296,150.55,150.52,5.3135]
[1751268737914,8.42243296,150.55,150.53,5.5268286]
[1751268738118,8.42243296,150.55,150.52,5.3135]
[1751268738416,8.42243296,150.55,150.53,5.52627349]
[1751268738715,8.42243296,150.55,150.52,5.3135]
[1751268738915,8.42243296,150.55,150.53,5.52627349]
[1751268739115,8.42243296,150.55,150.52,5.3135]
[1751268739414,8.42243296,150.55,150.53,5.53142581]
[1751268739613,8.42243296,150.55,150.52,5.3135]
[1751268739916,8.42243296,150.55,150.53,5.53142581]
[1751268740117,8.42243296,150.55,150.52,5.3135]
[1751268740318,8.42243296,150.55,150.53,5.53135157]
[1751268740522,8.42243296,150.55,150.52,5.3135]
[1751268740722,8.42243296,150.55,150.53,5.53130349]
[1751268740921,8.42243296,150.55,150.52,5.3135]
[1751268741120,8.42243296,150.55,150.53,5.53130349]
[1751268741419,8.42243296,150.55,150.52,5.3135]
[1751268741614,3.10983296,150.56,150.53,5.53118283]
[1751268741820,3.10983296,150.56,150.5,44.57300198]
[1751268742020,3.10983296,150.56,150.51,5.53138794]
[1751268742320,8.42223296,150.56,150.52,5.53138794]
[1751268742517,8.42223296,150.56,150.53,5.53138794]
[1751268742721,8.42223296,150.56,150.54,5.53138794]
[1751268742923,8.42223296,150.56,150.51,6.21210198]
[1751268743125,8.42223296,150.56,150.53,5.3132]
[1751268743319,8.42223296,150.56,150.54,5.53579428]
[1751268743623,8.42223296,150.56,150.53,5.3132]
[1751268743824,8.42223296,150.56,150.54,5.53520344]
[1751268744028,8.42223296,150.56,150.53,5.3132]
[1751268744231,8.42223296,150.56,150.54,5.53485756]
[1751268744423,8.42223296,150.56,150.53,5.3132]
[1751268744622,8.42223296,150.56,150.54,5.5346508]
[1751268744823,8.42223296,150.56,150.53,5.3132]
[1751268745124,3.10983296,150.56,150.54,10.84775738]
[1751268745428,3.10983296,150.57,150.55,5.53348141]
[1751268745628,3.10983296,150.57,150.51,6.21210198]
[1751268745829,1.98800522,150.55,150.53,5.313]
[1751268746029,1.98800522,150.55,150.54,5.53380934]
[1751268747030,1.98800522,150.55,150.54,10.84670934]
[1751268747331,1.98800522,150.55,150.54,5.53380934]
[1751268748829,1.98800522,150.55,150.52,5.3135]
[1751268749132,1.98800522,150.54,150.53,5.52314704]
[1751268749521,5.3125,150.56,150.53,5.52314704]
[1751268749727,1.98800522,150.54,150.52,5.3135]
[1751268750027,1.98800522,150.54,150.53,5.52289446]
[1751268751431,1.98800522,150.54,150.53,10.83619446]
[1751268758330,1.98800522,150.55,150.53,10.83619446]
[1751268758537,1.98800522,150.55,150.54,5.52289446]
[1751268765539,5.312,150.57,150.54,10.83579446]
[1751268765737,1.98816753,150.56,150.55,5.52289446]
[1751268766040,88.99744461,150.59,150.57,5.3115]
[1751268766334,90.98561214,150.59,150.57,5.3115]
[1751268766943,90.98561214,150.59,150.58,5.3115]
[1751268767234,90.98561214,150.59,150.56,2.2206]
[1751268767440,90.98561214,150.59,150.57,10.83965401]
[1751268767635,90.98561214,150.59,150.57,5.3118]
[1751268770545,1.98816753,150.58,150.56,7.5327]
[1751268770742,1.98816753,150.57,150.56,5.3121]
[1751268770931,1.98816753,150.57,150.56,10.84067795]
[1751268771331,1.98816753,150.57,150.56,5.3121]
[1751268776138,1.98739706,150.57,150.56,5.3121]
[1751268776540,1.98739706,150.57,150.56,10.82649936]
[1751268776939,88.99744461,150.59,150.57,5.3118]
[1751268777138,1.98739706,150.58,150.57,5.3118]
[1751268777334,1.98739706,150.58,150.57,10.82593142]
[1751268778241,7.29889706,150.58,150.57,5.51413142]
[1751268778445,1.98739706,150.58,150.51,44.48990198]
[1751268778747,1.98739706,150.53,150.52,5.3134]
[1751268779844,3.10716076,150.54,150.52,5.3134]
[1751268780544,3.10716076,150.54,150.53,5.3133]
[1751268782853,33.68,150.61,150.51,44.48990198]
[1751268783058,3.10716076,150.57,150.51,44.48990198]
[1751268784449,8.41926076,150.57,150.51,44.48990198]
[1751268785258,8.41926076,150.57,150.54,5.3127]
[1751268788753,5.3123,150.56,150.53,5.3131]
[1751268789252,3.10716076,150.55,150.51,44.48990198]
[1751268789452,3.10716076,150.55,150.51,38.2778]
[1751268790355,3.10716076,150.55,150.52,10.89947017]
[1751268790659,3.10716076,150.55,150.53,5.58617017]
[1751268790952,3.10716076,150.55,150.54,5.58617017]
[1751268791549,3.10716076,150.55,150.54,10.89907017]
[1751268791945,36.68716076,150.58,150.54,5.58617017]
[1751268792157,3.10716076,150.58,150.55,5.58617017]
[1751268792347,3.10716076,150.58,150.56,5.58617017]
[1751268792650,3.10716076,150.58,150.53,6.21210198]
[1751268792851,3.10716076,150.58,150.54,5.58524591]
[1751268793056,3.10716076,150.58,150.55,5.58524591]
[1751268793354,3.10716076,150.58,150.56,5.58524591]
[1751268793652,3.10716076,150.58,150.53,6.21210198]
[1751268793841,3.10716076,150.58,150.57,5.3118]
[1751268794248,3.10716076,150.58,150.56,5.3121]
[1751268796151,8.41876076,150.58,150.55,5.3123]
[1751268796459,8.41876076,150.58,150.56,5.58566215]
[1751268796754,8.41876076,150.58,150.55,5.3123]
[1751268797055,8.41876076,150.58,150.56,5.57188763]
[1751268797244,8.41876076,150.58,150.55,5.3123]
[1751268797451,8.41876076,150.58,150.56,5.57196313]
[1751268797653,8.41876076,150.58,150.55,5.3123]
[1751268797857,8.41876076,150.58,150.56,5.57196313]
[1751268798056,8.41876076,150.58,150.55,5.3123]
[1751268798246,8.41876076,150.58,150.56,5.57204494]
[1751268798450,8.41876076,150.58,150.55,5.3123]
[1751268798655,5.3118,150.57,150.56,5.57204494]
[1751268798852,8.41896076,150.57,150.56,5.57204494]
[1751268800462,3.10716076,150.57,150.56,5.57204494]
[1751268800959,3.10716076,150.57,150.51,38.2778]
[1751268801160,3.10716076,150.55,150.52,5.56700658]
[1751268801455,3.10716076,150.55,150.53,10.88020658]
[1751268801652,3.10716076,150.55,150.54,5.56700658]
[1751268804160,3.10716076,150.55,150.53,5.3132]
[1751268804758,3.10716076,150.55,150.52,5.3135]
[1751268805064,3.10716076,150.55,150.53,5.57467367]
[1751268805354,3.10716076,150.55,150.49,8.44540198]